bitfinex/quotes_ETHUSD_20250715
["timestamp","ask_amount","ask_price","bid_price","bid_amount"]
[1752561858399,5.257,2980.7,2980.6,0.31268655]
[1752561860302,5.257,2980.7,2980.5,3.52227549]
[1752561860503,5.257,2980.7,2980.6,0.31269674]
[1752561861572,5.257,2980.7,2980.6,0.31271108]
[1752561862385,8.65385308,2980.7,2980.6,0.31271108]
[1752561862580,8.61191663,2980.7,2980.6,0.31271108]
[1752561863620,5.257,2980.7,2980.6,0.31271108]
[1752561863909,8.65385308,2980.7,2980.6,0.31271108]
[1752561864111,9.39691663,2980.7,2980.6,0.31271108]
[1752561867184,6.042,2980.7,2980.6,0.31271108]
[1752561867507,9.43885308,2980.7,2980.6,0.31271108]
[1752561867714,9.39691663,2980.7,2980.6,0.31271108]
[1752561868618,9.39891663,2980.7,2980.6,0.31271108]
[1752561869389,9.39891663,2980.7,2980.3,0.001]
[1752561869693,9.39891663,2980.7,2980.4,0.31290718]
[1752561869917,6.044,2980.7,2980.5,0.31290718]
[1752561870082,6.044,2980.7,2980.6,0.31290718]
[1752561870276,5.238,2980.7,2980.6,0.31290718]
[1752561871498,8.63485308,2980.7,2980.6,0.31290718]
[1752561871700,8.59291663,2980.7,2980.6,0.31290718]
[1752561872024,5.238,2980.7,2980.6,0.31290718]
[1752561872178,5.27993645,2980.7,2980.6,0.31290718]
[1752561872626,0.04393645,2980.7,2980.6,0.31290718]
[1752561872784,5.233,2980.7,2980.6,4.2019332]
[1752561872984,5.233,2980.7,2980.6,0.84690402]
[1752561873183,5.233,2980.7,2980.6,4.2019332]
[1752561875587,5.233,2980.7,2980.6,4.20181054]
[1752561875990,5.233,2980.7,2980.6,0.84678136]
[1752561876435,9.41471663,2980.7,2980.6,0.31278452]
[1752561877024,6.0598,2980.7,2980.6,0.31278452]
[1752561878037,6.10173645,2980.7,2980.6,0.31278452]
[1752561878402,9.45665308,2980.7,2980.6,0.31278452]
[1752561878606,3.35507782,2980.6,2980.3,0.1682]
[1752561878806,5.26393927,2980.5,2980.4,0.31296189]
[1752561882791,8.61908102,2980.5,2980.4,0.31296189]
[1752561882991,8.57714175,2980.5,2980.4,0.31296189]
[1752561883195,5.222,2980.5,2980.4,0.31296189]
[1752561883395,5.26393927,2980.5,2980.4,0.31296189]
[1752561884531,5.222,2980.5,2980.4,0.31304067]
[1752561886629,8.57714175,2980.5,2980.4,0.31304067]
[1752561887133,9.33434175,2980.5,2980.4,0.31304067]
[1752561887438,9.33434175,2980.5,2980.3,0.001]
[1752561887439,3.90525432,2980.4,2980.3,0.001]
[1752561887733,21.3569963,2980.4,2980.3,0.3142206]
[1752561887904,21.31505563,2980.4,2980.3,0.3142206]
[1752561888301,14.82965432,2980.4,2980.3,0.3142206]
[1752561888612,20.03765432,2980.4,2980.3,0.3142206]
[1752561890535,20.03765432,2980.4,2980.3,0.3141559]
[1752561891836,26.52305563,2980.4,2980.3,0.3141559]
[1752561893561,27.2467856,2980.4,2980.3,0.3141559]
[1752561894165,20.76138429,2980.4,2980.3,0.3141559]
[1752561894987,20.76122266,2980.4,2980.3,0.3141559]
[1752561896180,20.76122266,2980.4,2980.3,0.001]
[1752561896319,20.76122266,2980.4,2980.3,0.31420252]
[1752561896813,20.76122266,2980.4,2980.3,0.001]
[1752561898850,27.24662397,2980.4,2980.3,0.001]
[1752561900757,3.35626783,2979.5,2979.4,0.001]
[1752561900921,9.56932117,2979.5,2979.4,0.001]
[1752561901121,9.52736783,2979.5,2979.4,0.001]
[1752561901342,10.07736783,2979.5,2979.4,0.001]
[1752561901728,20.07736783,2979.5,2979.4,0.001]
[1752561903175,20.07736783,2979.5,2979.0,0.001]
[1752561903176,3.9066058,2979.2,2979.0,1e-08]
[1752561903388,34.40891978,2979.1,2979.0,1e-08]
[1752561903681,23.45668288,2979.1,2979.0,1e-08]
[1752561903964,28.67768288,2979.1,2979.0,1e-08]
[1752561904162,22.73451847,2979.1,2979.0,1e-08]
[1752561904455,16.63271847,2979.1,2979.0,1e-08]
[1752561906062,17.18271847,2979.1,2979.0,1e-08]
[1752561906262,27.96351847,2979.1,2979.0,1e-08]
[1752561906853,28.68463853,2979.1,2979.0,1e-08]
[1752561907453,23.46463853,2979.1,2979.0,1e-08]
[1752561907653,22.19351847,2979.1,2979.0,1e-08]
[1752561907863,23.272,2979.1,2979.0,1e-08]
[1752561908687,18.056,2979.1,2979.0,1e-08]
[1752561908844,23.4372,2979.1,2979.0,1e-08]
[1752561909660,26.79391847,2979.1,2979.0,1e-08]
[1752561910083,18.2232,2979.1,2979.0,1e-08]
[1752561910287,23.4382,2979.1,2979.0,1e-08]
[1752561912484,26.79491847,2979.1,2979.0,1e-08]
[1752561914184,23.4382,2979.1,2979.0,1e-08]
[1752561914487,8.8671,2979.9,2979.0,1e-08]
[1752561914682,0.1672,2979.5,2979.0,3.52403116]
[1752561914888,5.24895475,2979.4,2979.0,3.52403116]
[1752561915618,5.24895475,2979.4,2979.0,0.16720001]
[1752561915802,3.35650413,2979.3,2979.0,0.16720001]
[1752561915963,5.24795757,2979.2,2979.0,0.16720001]
[1752561918816,5.24795757,2979.2,2979.0,1e-08]
[1752561919131,3.35671847,2979.1,2979.0,1e-08]
[1752561919275,8.7298474,2979.2,2979.0,1e-08]
[1752561920517,0.04195898,2979.1,2979.0,1e-08]
[1752561923911,3.39867745,2979.1,2979.0,1e-08]
[1752561925620,0.04195898,2979.1,2979.0,1e-08]
[1752561927014,0.04195898,2979.1,2979.0,0.31283846]
[1752561927190,3.39867745,2979.1,2979.0,0.31283846]
[1752561928608,0.04195898,2979.1,2979.0,0.31283846]
[1752561929415,0.72248137,2979.5,2979.0,0.48003846]
[1752561929416,0.88968137,2979.5,2979.0,0.48003846]
[1752561929621,0.04194912,2979.8,2979.4,0.1672]
[1752561929815,5.188,2979.7,2979.5,0.31283845]
[1752561930016,5.188,2979.7,2979.4,3.52347819]
[1752561930017,5.188,2979.7,2979.6,0.31283845]
[1752561930613,5.188,2979.7,2979.6,0.94003845]
[1752561930814,5.187,2979.7,2979.6,4.29619363]
[1752561931021,8.78048137,2979.9,2979.7,3.35597932]
[1752561931224,8.058,2979.9,2979.8,0.31316188]
[1752561931421,13.244,2979.9,2979.8,0.31316188]
[1752561932118,13.96648137,2979.9,2979.8,0.31294403]
[1752561932430,17.32229867,2979.9,2979.8,0.31294403]
[1752561932791,16.5998173,2979.9,2979.8,0.31294403]
[1752561933320,34.61769638,2979.9,2979.8,0.31294403]
[1752561933823,28.12533006,2979.9,2979.8,0.31294403]
[1752561934032,27.4019173,2979.9,2979.8,0.31294403]
[1752561934622,22.2159173,2979.9,2979.8,0.31294403]
[1752561934927,27.3979173,2979.9,2979.8,0.31294403]
[1752561939938,24.0421,2979.9,2979.0,0.79440001]
[1752561940259,0.1672,2979.5,2979.1,3.66966013]
[1752561940415,5.175,2979.4,2979.2,0.31301609]
[1752561940616,5.175,2979.4,2979.3,0.31303962]
[1752561941058,0.1672,2979.5,2979.3,0.31303962]
[1752561941212,8.058,2979.9,2979.4,0.94023962]
[1752561941413,5.174,2979.8,2979.6,3.35611807]
[1752561941649,8.058,2979.9,2979.7,3.66907765]
[1752561941815,8.058,2979.9,2979.8,0.94023962]
[1752561942017,13.233,2979.9,2979.8,0.94023962]
[1752561942218,13.233,2979.9,2979.8,4.29616954]
[1752561942417,13.232,2979.9,2979.8,4.29616954]
[1752561942732,13.232,2979.9,2979.8,0.94023962]
[1752561944146,16.5878173,2979.9,2979.6,4.633]
[1752561944452,0.04194912,2979.8,2979.6,4.633]
[1752561944654,5.172,2979.7,2979.6,4.633]
[1752561946321,5.172,2979.7,2979.6,8.86751897]
[1752561946521,5.172,2979.7,2979.6,5.51136379]
[1752561947062,5.172,2979.7,2979.6,4.633]
[1752561948165,5.172,2979.7,2979.5,4.15066086]
[1752561948927,5.168,2979.6,2979.5,4.15066086]
[1752561950509,0.04194912,2979.8,2979.5,4.15066084]
[1752561950802,8.058,2979.9,2979.7,3.35597037]
[1752561950967,5.166,2979.8,2979.7,3.35597037]
[1752561952198,8.058,2979.9,2979.8,3.35592992]
[1752561952401,0.002,2980.3,2980.0,3.35559548]
[1752561952699,5.166,2980.2,2980.1,3.35550599]
[1752561953191,5.166,2980.2,2980.1,0.1672]
[1752561955270,5.165,2980.2,2980.1,0.1672]
[1752561956875,5.165,2980.2,2980.1,4.8002]
[1752561961201,0.002,2980.3,2980.2,3.98267949]
[1752561961403,0.002,2980.3,2980.2,8.00518007]
[1752561961608,0.002,2980.3,2980.2,8.61567949]
[1752561962406,0.002,2980.3,2980.2,18.61567949]
[1752561962622,0.002,2980.3,2980.2,10.6272]
[1752561962773,5.167,2980.3,2980.1,3.52269771]
[1752561963164,5.167,2980.3,2980.2,3.35547949]
[1752561963371,5.184,2980.3,2980.2,3.98267949]
[1752561963614,5.184,2980.3,2980.2,4.73321721]
[1752561966802,5.184,2980.3,2980.2,0.6272]
[1752561967005,5.184,2980.3,2980.1,0.1672]
[1752561967399,5.22594208,2980.3,2980.1,0.1672]
[1752561967626,5.184,2980.3,2980.1,0.1672]
[1752561971640,5.184,2980.3,2980.1,4.8002]
[1752561972140,5.184,2980.3,2980.1,12.10386551]
[1752561972436,0.002,2980.3,2980.2,13.98267949]
[1752561976473,0.002,2980.7,2980.6,3.35502918]
[1752561976751,0.002,2980.7,2980.6,24.33222918]
[1752561977044,0.002,2980.7,2980.6,18.61522918]
[1752561977345,0.002,2980.7,2980.6,25.9782664]
[1752561977644,0.002,2980.7,2980.6,20.8122664]
[1752561978251,0.002,2980.7,2980.6,20.1850664]
[1752561979313,0.002,2980.7,2980.6,26.5262664]
[1752561982465,0.002,2980.7,2980.6,26.5252664]
[1752561984124,0.002,2980.7,2980.6,20.8122664]
[1752561984324,0.002,2980.7,2980.6,25.9752664]
[1752561986032,0.002,2980.7,2980.6,25.3480664]
[1752561986441,0.002,2980.7,2980.6,25.5152664]
[1752561986631,0.002,2980.7,2980.6,20.3522664]
[1752561986832,0.002,2980.7,2980.6,25.5152664]
[1752561987064,0.002,2980.7,2980.6,15.7192664]
[1752561987372,0.002,2980.7,2980.6,13.52222918]
[1752561987726,0.002,2980.7,2980.6,3.52222918]
[1752561988128,0.002,2980.7,2980.6,0.1672]
[1752561988437,0.002,2980.7,2980.6,3.52222918]
[1752561991843,0.002,2980.7,2980.6,0.1672]
[1752561992081,0.04393645,2980.7,2980.6,0.1672]
[1752561993372,0.002,2980.7,2980.6,3.52222918]
[1752561993572,0.002,2980.7,2980.6,4.209966]
[1752561994550,0.002,2980.7,2980.6,4.22665532]
[1752561995488,0.002,2980.7,2980.6,4.8002]
[1752561995692,0.04393645,2980.7,2980.6,4.8002]
[1752561996248,0.002,2980.7,2980.6,8.15522918]
[1752561999200,0.002,2980.7,2980.6,4.8002]
[1752562001368,0.002,2980.7,2980.6,0.1672]
[1752562001774,0.002,2980.7,2980.6,3.52222918]
[1752562001970,0.002,2980.7,2980.6,4.21173496]
[1752562003511,0.002,2980.7,2980.6,0.1672]
[1752562004010,0.002,2980.7,2980.6,3.52222918]
[1752562005015,0.002,2980.7,2980.6,0.1672]
[1752562005176,0.002,2980.7,2980.5,0.001]
[1752562005177,3.35694322,2980.7,2980.5,0.001]
[1752562005376,0.04193786,2980.6,2980.5,0.001]
[1752562005576,0.04393645,2980.7,2980.5,0.001]
[1752562008329,3.39890222,2980.7,2980.5,0.001]
[1752562008833,0.04393645,2980.7,2980.5,0.001]
[1752562009206,3.35502918,2980.6,2980.5,0.001]
[1752562009835,4.13622918,2980.6,2980.5,0.001]
[1752562011634,4.17816704,2980.6,2980.5,0.001]
[1752562016639,5.98513786,2980.6,2980.5,0.001]
[1752562016828,5.9432,2980.6,2980.5,0.001]
[1752562017158,5.162,2980.6,2980.5,0.001]
[1752562018933,5.162,2980.6,2980.5,3.35614175]
[1752562019138,5.162,2980.6,2980.5,4.19447717]
[1752562019755,5.162,2980.6,2980.5,0.1682]
[1752562020269,5.162,2980.6,2980.5,0.001]
[1752562020270,5.98923786,2980.6,2980.5,0.001]
[1752562020768,9.34426704,2980.6,2980.5,0.001]
[1752562020933,9.30232918,2980.6,2980.5,0.001]
[1752562024032,19.30232918,2980.6,2980.5,0.001]
[1752562024466,21.29106034,2980.6,2980.5,0.001]
[1752562024667,19.85232918,2980.6,2980.5,0.001]
[1752562028002,4.12338048,2979.8,2979.3,0.001]
[1752562028304,5.37015053,2979.7,2979.3,0.001]
[1752562029307,8.72620689,2979.7,2979.3,0.001]
[1752562029483,5.3282,2979.7,2979.3,0.001]
[1752562029780,5.37015053,2979.7,2979.3,0.001]
[1752562030779,8.72619862,2979.7,2979.3,0.001]
[1752562030972,5.3282,2979.7,2979.3,0.001]
[1752562031175,5.37015053,2979.7,2979.3,0.001]
[1752562032810,3.35617103,2979.6,2979.3,0.001]
[1752562033015,5.20295334,2979.5,2979.3,0.001]
[1752562037889,5.19331901,2979.5,2979.3,0.001]
[1752562038335,5.161,2979.5,2979.3,3.35742982]
[1752562039324,5.161,2979.5,2979.3,0.001]
[1752562041161,0.04195475,2979.4,2979.3,0.001]
[1752562044377,3.39833522,2979.4,2979.3,0.001]
[1752562045960,4.15633522,2979.4,2979.3,0.001]
[1752562047009,20.64804654,2979.4,2979.3,0.001]
[1752562047213,20.60609179,2979.4,2979.3,0.001]
[1752562047872,21.32886699,2979.4,2979.3,0.3145133]
[1752562048157,21.87886699,2979.4,2979.3,0.3145133]
[1752562048931,15.38715567,2979.4,2979.3,0.3145133]
[1752562049262,14.83715567,2979.4,2979.3,0.3145133]
[1752562049416,4.11438047,2979.4,2979.3,0.3145133]
[1752562049625,9.31533522,2979.4,2979.3,0.3145133]
[1752562049926,8.51538047,2979.4,2979.3,0.3145133]
[1752562050269,8.51538047,2979.4,2979.3,0.31391083]
[1752562051118,5.159,2979.4,2979.3,0.31391083]
[1752562052136,5.159,2979.4,2979.3,0.68096467]
[1752562052753,5.159,2979.4,2979.3,4.0374578]
[1752562052956,0.002,2979.5,2979.4,3.35638047]
[1752562053156,0.002,2979.5,2979.4,3.6692913]
[1752562054559,0.002,2979.5,2979.4,3.66920391]
[1752562054858,0.002,2979.5,2979.4,0.31282344]
[1752562055825,0.002,2979.5,2979.4,3.66920391]
[1752562056376,0.002,2979.5,2979.4,0.31282344]
[1752562056864,0.002,2979.5,2979.4,3.66920391]
[1752562057059,0.002,2979.5,2979.4,3.83640391]
[1752562057264,0.002,2979.5,2979.4,4.65522952]
[1752562057648,0.002,2979.5,2979.4,1.29884905]
[1752562058841,0.002,2979.5,2979.4,4.65522952]
[1752562059043,0.002,2979.5,2979.4,1.29884905]
[1752562059241,0.04395334,2979.5,2979.4,0.31282344]
[1752562059866,3.40022117,2979.5,2979.4,0.31282344]
[1752562061370,3.35638047,2979.4,2979.3,0.001]
[1752562061579,3.35638047,2979.4,2979.3,0.31403244]
[1752562061890,8.51438047,2979.4,2979.3,0.31403244]
[1752562063374,8.51438047,2979.4,2979.3,0.001]
[1752562063559,9.48208047,2979.4,2979.3,0.31424673]
[1752562065689,8.51438047,2979.4,2979.3,0.31424673]
[1752562066362,5.158,2979.4,2979.3,0.31424673]
[1752562066564,8.55633522,2979.4,2979.3,0.31424673]
[1752562066761,8.51438047,2979.4,2979.3,0.31424673]
[1752562068354,9.28588047,2979.4,2979.3,0.31424673]
[1752562069348,9.45308047,2979.4,2979.3,0.31424673]
[1752562069557,8.68158047,2979.4,2979.3,0.31424673]
[1752562069967,5.158,2979.4,2979.3,0.31424673]
[1752562070163,0.04395334,2979.5,2979.3,0.31424673]
[1752562070355,0.002,2979.5,2979.4,0.31324673]
[1752562070568,5.159,2979.5,2979.4,0.48044673]
[1752562072385,5.159,2979.5,2979.4,0.48024662]
[1752562072560,5.159,2979.5,2979.4,0.48024882]
[1752562072897,0.002,2979.5,2979.4,0.48024882]
[1752562073200,0.002,2979.5,2979.4,4.28311843]
[1752562073361,0.002,2979.5,2979.4,4.91031843]
[1752562073562,0.002,2979.5,2979.4,9.54327261]
[1752562074796,3.35826783,2979.5,2979.4,5.113203]
[1752562075002,0.002,2979.5,2979.4,5.113203]
[1752562075203,3.40022117,2979.5,2979.4,5.113203]
[1752562075366,0.04395334,2979.5,2979.4,4.8002]
[1752562075560,0.04395334,2979.5,2979.4,5.11313187]
[1752562075762,3.40022117,2979.5,2979.4,5.11313187]
[1752562075977,0.04395334,2979.5,2979.4,5.11313187]
[1752562076485,0.002,2979.5,2979.4,5.11313187]
[1752562077201,3.35826783,2979.5,2979.4,5.11313187]
[1752562077873,0.002,2979.5,2979.4,5.11313187]
[1752562078226,3.78009097,2979.5,2979.4,0.31293187]
[1752562078903,3.82204431,2979.5,2979.4,0.31293187]
[1752562079505,3.35638047,2979.4,2979.3,0.001]
[1752562079714,3.35638047,2979.4,2979.3,0.31453327]
[1752562079882,4.11198236,2979.4,2979.3,0.31453327]
[1752562080508,4.90488236,2979.4,2979.3,0.31453327]
[1752562081009,4.90488236,2979.4,2979.3,0.001]
[1752562081178,4.90488236,2979.4,2979.3,0.31463019]
[1752562081379,15.45488236,2979.4,2979.3,0.31463019]
[1752562081586,16.13685836,2979.4,2979.3,0.31463019]
[1752562081903,16.13685836,2979.4,2979.3,0.3148349]
[1752562082319,3.35671847,2979.1,2979.0,1e-08]
[1752562082471,24.47545605,2979.1,2979.0,1e-08]
[1752562082677,24.43349707,2979.1,2979.0,1e-08]
[1752562083618,14.13981847,2979.1,2979.0,1e-08]
[1752562084018,14.86337639,2979.1,2979.0,1e-08]
[1752562084515,14.13981847,2979.1,2979.0,1e-08]
[1752562086075,0.7831,2979.1,2979.0,1e-08]
[1752562086273,4.18177745,2979.1,2979.0,1e-08]
[1752562086988,4.73177745,2979.1,2979.0,1e-08]
[1752562087198,24.47545605,2979.1,2979.0,1e-08]
[1752562087412,25.15636163,2979.1,2979.0,1e-08]
[1752562088594,4.11112011,2978.3,2978.2,0.001]
[1752562088818,4.15309036,2978.3,2978.2,0.001]
[1752562090943,19.85909036,2978.3,2978.2,0.001]
[1752562091240,19.81712011,2978.3,2978.2,0.001]
[1752562091740,14.66112011,2978.3,2978.2,0.001]
[1752562094410,14.11112011,2978.3,2978.2,0.001]
[1752562094610,4.11112011,2978.3,2978.2,0.001]
[1752562094817,4.15309036,2978.3,2978.2,0.001]
[1752562095764,4.70309036,2978.3,2978.2,0.001]
[1752562096811,4.70309036,2978.3,2978.1,0.041]
[1752562096812,14.86203285,2978.2,2978.1,0.041]
[1752562097364,14.86203285,2978.2,2978.1,1e-08]
[1752562097524,1.3248,2977.9,2977.8,1e-08]
[1752562097729,14.724847,2977.9,2977.8,1e-08]
[1752562097929,14.68287112,2977.9,2977.8,1e-08]
[1752562099138,24.42654972,2977.9,2977.8,1e-08]
[1752562101747,3.35886067,2977.2,2976.4,0.6272]
[1752562101970,14.20124642,2977.2,2976.4,0.6272]
[1752562102136,14.15926067,2977.2,2976.4,0.6272]
[1752562102335,14.70926067,2977.2,2976.4,0.6272]
[1752562102533,14.70926067,2977.2,2976.2,0.6272]
[1752562103373,14.70926067,2977.2,2976.3,3.359823]
[1752562103549,14.70926067,2977.2,2976.5,0.25087961]
[1752562105373,14.70926067,2977.2,2976.2,0.6272]
[1752562107375,14.70926067,2977.2,2976.3,0.25528535]
[1752562109476,13.90897349,2977.1,2977.0,0.001]
[1752562111051,17.44097349,2977.1,2977.0,0.001]
[1752562111246,13.90897349,2977.1,2977.0,0.001]
[1752562112139,0.90164819,2977.7,2977.0,0.001]
[1752562112340,0.7757,2977.6,2977.0,0.001]
[1752562112664,0.002,2978.2,2977.0,0.001]
[1752562112665,0.1672,2977.4,2977.1,3.98616499]
[1752562112866,3.40177663,2978.2,2977.4,0.6272]
[1752562113190,0.1672,2977.7,2977.4,4.38433712]
[1752562113487,0.1672,2977.7,2977.5,0.6272]
[1752562115576,0.04197307,2978.1,2977.7,3.35826503]
[1752562115822,0.002,2978.2,2977.7,3.35821966]
[1752562115823,0.04397166,2978.2,2977.7,3.35821966]
[1752562115980,0.21117166,2978.2,2977.6,3.35840945]
[1752562116143,0.21117166,2978.2,2977.7,0.1672]
[1752562116476,0.21117166,2978.2,2977.7,3.52539591]
[1752562116978,0.21117166,2978.2,2977.7,0.1672]
[1752562117282,3.40177225,2978.2,2977.5,0.6272]
[1752562117485,0.1672,2978.0,2977.5,0.7944]
[1752562117683,0.1672,2978.0,2977.2,7.99185218]
[1752562117684,0.04197588,2977.9,2977.2,5.2602]
[1752562117842,0.04197588,2977.9,2977.0,0.001]
[1752562117843,0.1672,2977.4,2977.0,0.001]
[1752562118049,0.1672,2977.4,2977.0,0.6282]
[1752562118358,0.04198434,2977.3,2977.0,0.6282]
[1752562119562,0.20918434,2977.3,2977.0,0.6282]
[1752562120068,3.35895636,2977.2,2977.0,0.001]
[1752562120404,0.04198716,2977.1,2977.0,0.001]
[1752562121163,0.04198575,2977.2,2977.0,3.35999474]
[1752562121500,0.1672,2977.5,2977.1,4.32216851]
[1752562121708,0.1672,2977.5,2977.1,3.98613164]
[1752562122005,0.1672,2977.5,2977.2,3.35885146]
[1752562122359,0.1672,2977.5,2977.1,0.6272]
[1752562122691,0.1672,2977.5,2977.0,0.1682]
[1752562122692,0.20917729,2977.8,2977.5,0.6272]
[1752562123502,0.20917729,2977.8,2977.5,3.98570205]
[1752562123503,0.04197729,2977.8,2977.5,3.98570205]
[1752562123701,0.1672,2977.9,2977.5,3.98570205]
[1752562124501,0.1672,2977.9,2977.5,1.37836326]
[1752562124704,0.1672,2977.9,2977.6,3.35837219]
[1752562125003,0.1672,2977.9,2977.5,0.6272]
[1752562125364,0.1672,2977.9,2977.5,3.98565195]
[1752562127207,0.1672,2977.9,2977.5,0.6272]
[1752562127604,3.52537027,2977.9,2977.5,0.6272]
[1752562127797,0.04197729,2977.8,2977.5,0.6272]
[1752562127962,0.04197729,2977.8,2977.3,4.633]
[1752562127963,0.39871205,2977.8,2977.3,4.633]
[1752562128167,0.1672,2977.7,2977.3,4.633]
[1752562128666,3.5675046,2977.7,2977.2,0.7944]
[1752562128898,0.2091787,2977.7,2977.2,4.15321927]
[1752562129702,0.2091787,2977.7,2977.2,0.7944]
[1752562129905,0.1672,2978.0,2977.6,3.35836958]
[1752562130107,0.1672,2978.1,2977.7,0.6272]
[1752562130302,0.1672,2978.1,2977.7,3.98547188]
[1752562130609,0.1672,2978.1,2977.7,0.6272]
[1752562130828,0.1672,2978.1,2977.8,3.35809902]
[1752562131009,0.002,2977.9,2977.8,3.35809902]
[1752562131183,0.002,2977.9,2977.8,4.10918097]
[1752562131377,0.002,2977.9,2977.8,4.27638097]
[1752562132410,0.002,2977.9,2977.8,0.91828195]
[1752562132610,0.002,2977.9,2977.8,0.25128079]
[1752562132823,0.002,2977.9,2977.7,3.98549328]
[1752562133117,0.002,2977.9,2977.8,3.35818389]
[1752562133470,0.002,2977.9,2977.8,3.38458658]
[1752562133672,0.002,2977.9,2977.8,4.15258389]
[1752562133975,0.002,2977.9,2977.8,4.90367172]
[1752562136230,0.002,2977.9,2977.8,5.14945976]
[1752562136372,0.002,2977.9,2977.8,5.17586245]
[1752562137864,0.002,2977.9,2977.8,15.72586245]
[1752562138068,0.002,2977.9,2977.8,15.69945976]
[1752562138301,0.002,2977.9,2977.8,20.33245976]
[1752562140204,0.002,2977.9,2977.8,19.78245976]
[1752562141084,0.002,2977.9,2977.8,20.33245976]
[1752562143796,0.002,2977.9,2977.8,19.78245976]
[1752562145078,0.002,2977.9,2977.8,20.33245976]
[1752562145274,0.002,2978.2,2978.1,4.5350456]
[1752562145609,0.002,2978.2,2978.1,16.26161923]
[1752562145812,0.002,2978.2,2978.1,16.235225]
[1752562146201,0.04,2978.9,2978.8,3.35705653]
[1752562146383,0.04,2978.9,2978.8,18.61525653]
[1752562146579,0.04,2978.9,2978.8,18.78245653]
[1752562146778,0.04,2978.9,2978.8,22.03042249]
[1752562149625,0.04,2978.9,2978.8,22.58042249]
[1752562150989,0.002,2979.4,2979.2,0.55]
[1752562151190,0.002,2979.4,2979.3,24.47093311]
[1752562151397,0.002,2979.4,2979.3,24.44457173]
[1752562151596,0.002,2979.4,2979.3,27.22468982]
[1752562152605,0.002,2979.4,2979.3,17.48101122]
[1752562153637,0.002,2979.4,2979.3,13.82012663]
[1752562153816,0.002,2979.4,2979.3,13.19292663]
[1752562154839,0.002,2979.4,2979.3,16.54941976]
[1752562155236,0.002,2979.4,2979.3,21.18041976]
[1752562155654,0.002,2979.4,2979.3,17.82392663]
[1752562156604,0.002,2979.4,2979.3,21.18041976]
[1752562156804,0.002,2979.4,2979.3,17.82392663]
[1752562157943,0.002,2979.4,2979.3,5.04380854]
[1752562158129,3.35838047,2979.4,2979.3,5.04380854]
[1752562159908,4.15838047,2979.4,2979.3,0.24560854]
[1752562160115,3.3566058,2979.2,2979.1,0.1672]
[1752562161036,3.39856337,2979.2,2979.1,0.1672]
[1752562161244,3.35671847,2979.1,2979.0,4.631]
[1752562161758,3.39867745,2979.1,2979.0,4.631]
[1752562162358,3.39867745,2979.1,2978.8,0.1672]
[1752562162359,3.35694383,2978.9,2978.8,0.1672]
[1752562162560,3.35735119,2978.6,2978.5,0.1672]
[1752562162963,3.35720081,2978.7,2978.5,0.1672]
[1752562163164,3.35707996,2978.8,2978.5,0.1672]
[1752562163369,3.35678303,2979.1,2978.5,3.55093625]
[1752562163565,3.35678303,2979.1,2978.6,0.6272]
[1752562163772,3.35678303,2979.1,2978.8,0.1672]
[1752562164371,3.35675386,2979.1,2978.8,0.1672]
[1752562164541,0.8166,2979.3,2978.6,0.6272]
[1752562164870,0.002,2979.4,2979.0,0.1672]
[1752562165840,0.04395475,2979.4,2979.0,0.1672]
[1752562166041,3.35663375,2979.2,2979.0,0.1672]
[1752562166386,4.14831847,2979.1,2979.0,0.1672]
[1752562167481,0.7916,2979.1,2979.0,0.1672]
[1752562168576,4.14831847,2979.1,2979.0,0.1672]
[1752562168984,0.7916,2979.1,2979.0,0.1672]
[1752562171069,4.14831847,2979.1,2979.0,0.1672]
[1752562173452,0.7916,2979.1,2979.0,0.1672]
[1752562174590,4.14831847,2979.1,2979.0,0.1672]
[1752562179652,0.7916,2979.1,2979.0,0.1672]
[1752562181189,0.7542,2979.4,2979.0,0.1672]
[1752562181355,0.79615475,2979.4,2979.0,0.1672]
[1752562181854,4.15261687,2979.4,2979.0,0.1672]
[1752562182055,3.35671847,2979.1,2979.0,0.1672]
[1752562182877,3.35671847,2979.1,2978.6,4.631]
[1752562182878,3.35714775,2978.8,2978.6,4.631]
[1752562183088,3.35705653,2978.8,2978.7,0.1672]
[1752562183293,3.39901973,2978.8,2978.7,0.1672]
[1752562186178,3.35705653,2978.8,2978.7,0.1672]
[1752562187796,3.39901973,2978.8,2978.7,0.1672]
[1752562188782,0.0419632,2978.8,2978.7,0.1672]
[1752562189403,3.39901973,2978.8,2978.7,0.1672]
[1752562189904,3.39901973,2978.8,2978.3,4.631]
[1752562189905,3.35745764,2978.5,2978.3,4.631]
[1752562190196,3.39928329,2978.6,2978.3,4.7982]
[1752562190767,3.39928329,2978.6,2978.3,0.1672]
[1752562191036,3.35740509,2978.5,2978.3,0.1672]
[1752562191837,3.39930023,2978.6,2978.3,0.1672]
[1752562192236,3.35745877,2978.5,2978.3,0.1672]
[1752562192611,3.39929192,2978.6,2978.3,0.1672]
[1752562193541,3.35750738,2978.4,2978.3,0.1672]
[1752562194246,3.35742413,2978.5,2978.3,0.1672]
[1752562194756,3.39925944,2978.6,2978.3,0.1672]
[1752562195108,3.39925158,2978.6,2978.3,0.1672]
[1752562195536,0.04196602,2978.6,2978.3,0.1672]
[1752562195852,0.04196461,2978.7,2978.3,0.1672]
[1752562196545,3.39917978,2978.7,2978.3,0.1672]
[1752562196754,3.357288,2978.6,2978.3,0.1672]
[1752562196923,0.7985,2979.0,2978.4,3.35744387]
[1752562197124,0.002,2979.1,2978.6,3.52438903]
[1752562197445,0.002,2979.1,2978.9,0.7944]
[1752562197637,0.002,2979.1,2979.0,4.631]
[1752562197835,0.002,2979.1,2979.0,4.65736887]
[1752562198069,0.002,2979.1,2979.0,5.20254576]
[1752562198219,0.002,2979.1,2979.0,8.55937691]
[1752562198572,0.002,2979.1,2979.0,8.53300804]
[1752562199018,4.17941847,2979.1,2979.0,0.54517689]
[1752562199218,3.3569332,2979.0,2978.4,3.98463446]